bitfinex/quotes_SOLUSD_20240811
["timestamp","ask_amount","ask_price","bid_price","bid_amount"]
[1723412614104,0.8086246,144.15,144.14,8.32473552]
[1723412614303,0.8086246,144.15,144.14,8.45022552]
[1723412614522,0.8086246,144.15,144.14,28.45022552]
[1723412615816,0.8086246,144.15,144.14,28.82669552]
[1723412616200,0.8086246,144.15,144.14,46.54689552]
[1723412617705,0.8086246,144.15,144.14,91.54689552]
[1723412618331,11.34,144.18,144.11,46.0352]
[1723412618508,11.34,144.19,144.16,17.341]
[1723412619805,11.34,144.19,144.18,6.9357]
[1723412621328,6.9333,144.24,144.19,6.9351]
[1723412621631,11.34,144.2,144.19,6.9351]
[1723412622328,11.34,144.2,144.18,6.9356]
[1723412622633,11.34,144.2,144.19,6.9352]
[1723412623401,32.7797,144.2,144.18,24.2742]
[1723412623621,11.34,144.19,144.18,24.2742]
[1723412624017,32.7797,144.2,144.18,24.2742]
[1723412624197,21.4397,144.2,144.19,6.9352]
[1723412624396,32.7797,144.2,144.19,6.9352]
[1723412626622,45.25098,144.23,144.2,6.9348]
[1723412626828,11.34,144.21,144.2,6.9348]
[1723412627816,45.25098,144.23,144.2,6.9348]
[1723412628014,11.34,144.21,144.2,6.9348]
[1723412628509,45.25098,144.23,144.2,6.9348]
[1723412628716,11.34,144.21,144.2,6.9348]
[1723412629104,22.3296,144.24,144.22,6.9334]
[1723412629306,16.0144,144.24,144.19,34.6755]
[1723412629531,6.5728,144.26,144.24,6.9328]
[1723412630623,11.34,144.25,144.23,24.2667]
[1723412630824,11.34,144.24,144.23,24.2667]
[1723412632937,6.5728,144.26,144.23,24.2667]
[1723412632938,11.34,144.25,144.23,24.2667]
[1723412633108,11.34,144.25,144.24,6.9328]
[1723412633307,6.5728,144.26,144.24,6.9328]
[1723412633538,6.9335,144.23,144.11,51.0875]
[1723412633737,20.0,144.22,144.13,30.0]
[1723412634027,11.34,144.2,144.13,30.0]
[1723412634235,15.3815,144.25,144.18,11.34]
[1723412634421,26.7215,144.25,144.19,0.49647868]
[1723412634733,11.34,144.25,144.24,6.9328]
[1723412635428,6.5728,144.26,144.24,6.9328]
[1723412635633,6.5728,144.26,144.25,6.9324]
[1723412637026,17.9128,144.26,144.25,6.9324]
[1723412637818,11.34,144.26,144.22,17.334]
[1723412638017,23.1207246,144.29,144.22,17.334]
[1723412638018,22.65,144.27,144.22,17.334]
[1723412638305,22.65,144.27,144.19,34.6755]
[1723412638306,22.65,144.27,144.25,6.9322]
[1723412640809,16.1901246,144.29,144.25,6.9322]
[1723412641015,22.65,144.26,144.25,6.9322]
[1723412643141,45.0,144.28,144.25,6.9322]
[1723412643322,22.65,144.27,144.25,6.9322]
[1723412644723,22.65,144.27,144.26,6.9319]
[1723412644935,22.65,144.27,144.25,6.9323]
[1723412646818,22.65,144.27,144.26,6.9319]
[1723412647626,22.65,144.27,144.25,6.9323]
[1723412652157,0.8086246,144.29,144.22,0.12549]
[1723412652347,0.8086246,144.29,144.28,6.9309]
[1723412655426,0.8086246,144.29,144.28,26.9309]
[1723412655830,0.8086246,144.29,144.28,27.18188]
[1723412656333,0.8086246,144.29,144.28,26.9309]
[1723412658531,22.3446,144.4,144.28,81.47659]
[1723412658736,11.31,144.36,144.35,24.2464]
[1723412658934,11.31,144.37,144.35,17.3188]
[1723412659174,11.31,144.37,144.36,6.9266]
[1723412661844,22.61,144.37,144.36,6.9266]
[1723412662450,22.61,144.37,144.35,24.2462]
[1723412662659,22.61,144.37,144.36,6.9271]
[1723412662836,22.61,144.37,144.35,24.2463]
[1723412667666,22.61,144.37,144.36,6.9271]
[1723412667876,22.61,144.37,144.35,24.2463]
[1723412669565,22.3446,144.4,144.35,24.2463]
[1723412669776,22.61,144.36,144.35,24.2463]
[1723412673671,22.61,144.36,144.35,17.3188]
[1723412674079,22.61,144.36,144.35,24.2464]
[1723412676676,45.12549,144.39,144.36,6.9271]
[1723412676868,22.61,144.37,144.36,6.9271]
[1723412680767,22.61,144.37,144.35,24.2463]
[1723412680964,22.61,144.37,144.35,17.3188]
[1723412681689,22.61,144.37,144.36,6.9271]
[1723412681870,22.3446,144.4,144.36,6.9271]
[1723412682068,11.31,144.37,144.36,6.9271]
[1723412683488,45.0,144.39,144.36,6.9271]
[1723412683676,11.31,144.37,144.36,6.9271]
[1723412684384,45.0,144.39,144.37,6.9264]
[1723412684680,11.31,144.38,144.37,6.9264]
[1723412685080,11.31,144.38,144.36,6.927]
[1723412685389,11.31,144.37,144.36,6.927]
[1723412686111,22.3446,144.4,144.37,6.9265]
[1723412686261,11.31,144.38,144.37,6.9265]
[1723412687608,0.8086246,144.44,144.41,6.9243]
[1723412687801,11.31,144.42,144.41,6.9243]
[1723412688306,0.8086246,144.44,144.43,6.9237]
[1723412689493,12.1186246,144.44,144.42,24.2347]
[1723412689687,12.1186246,144.44,144.42,17.3105]
[1723412689688,11.6186246,144.44,144.42,17.3105]
[1723412690704,11.6186246,144.44,144.43,6.9237]
[1723412690900,0.3086246,144.44,144.43,6.9237]
[1723412691119,11.6186246,144.44,144.43,6.9237]
[1723412692393,0.3086246,144.44,144.43,6.9237]
[1723412692711,11.6186246,144.44,144.43,6.9237]
[1723412694006,0.3086246,144.44,144.43,6.9237]
[1723412694512,11.6186246,144.44,144.43,6.9237]
[1723412695382,0.3086246,144.44,144.43,6.9237]
[1723412695586,11.6186246,144.44,144.43,6.9237]
[1723412697311,0.3086246,144.44,144.43,6.9237]
[1723412697619,11.6186246,144.44,144.43,6.9237]
[1723412698536,11.6186246,144.44,144.42,24.2346]
[1723412698680,11.31,144.43,144.41,6.9247]
[1723412698886,11.31,144.42,144.4,6.9251]
[1723412699092,11.31,144.41,144.4,6.9251]
[1723412699588,22.12,144.41,144.39,24.2391]
[1723412699782,0.3086246,144.44,144.4,6.9251]
[1723412699983,45.3086246,144.44,144.4,6.9251]
[1723412700199,45.3086246,144.44,144.41,6.9246]
[1723412700394,45.3086246,144.44,144.39,17.3138]
[1723412700395,45.3086246,144.44,144.39,24.239]
[1723412700603,45.3086246,144.44,144.39,17.3138]
[1723412700794,45.3086246,144.44,144.4,6.9248]
[1723412700992,45.3086246,144.44,144.41,6.9246]
[1723412701195,11.31,144.42,144.41,6.9246]
[1723412701809,45.3086246,144.44,144.41,6.9246]
[1723412702007,11.31,144.42,144.41,6.9246]
[1723412702506,11.31,144.42,144.4,6.9252]
[1723412702711,7.4126,144.43,144.4,6.9249]
[1723412702920,11.31,144.41,144.4,6.9249]
[1723412703808,6.4126,144.43,144.4,6.9249]
[1723412704011,11.31,144.41,144.4,6.9249]
[1723412705589,11.31,144.41,144.39,24.2394]
[1723412705813,6.4126,144.43,144.39,24.2394]
[1723412706143,11.31,144.4,144.39,24.2394]
[1723412706904,16.0564246,144.44,144.4,6.925]
[1723412707096,11.31,144.41,144.4,6.925]
[1723412707608,11.31,144.41,144.39,24.2393]
[1723412707810,22.9797246,144.44,144.4,6.9251]
[1723412708015,11.31,144.41,144.4,6.9251]
[1723412709504,22.62,144.41,144.38,6.926]
[1723412709817,11.31,144.39,144.38,6.926]
[1723412710317,11.31,144.39,144.37,6.9262]
[1723412710497,1.0,144.4,144.37,6.9262]
[1723412710698,45.24,144.41,144.37,6.9262]
[1723412710699,11.31,144.38,144.37,6.9262]
[1723412710887,11.31,144.38,144.36,24.2443]
[1723412711399,11.31,144.38,144.34,6.9276]
[1723412711593,11.31,144.35,144.34,6.9276]
[1723412711814,11.31,144.35,144.33,24.2493]
[1723412711995,11.31,144.34,144.33,17.3209]
[1723412712197,11.31,144.34,144.33,24.249]
[1723412712394,11.31,144.35,144.34,6.9278]
[1723412713002,6.9257,144.39,144.34,6.9278]
[1723412713207,45.0,144.38,144.35,6.9275]
[1723412713594,51.9256,144.39,144.35,6.9275]
[1723412713795,51.9256,144.39,144.34,6.9279]
[1723412713998,45.0,144.39,144.35,6.9275]
[1723412714510,11.31,144.36,144.35,6.9275]
[1723412715422,11.31,144.36,144.34,6.9279]
[1723412715715,1.0,144.35,144.34,6.9279]
[1723412715921,1.0,144.35,144.33,17.3209]
[1723412716129,12.31,144.35,144.33,17.3209]
[1723412716421,1.0,144.34,144.33,24.2494]
[1723412717123,11.31,144.36,144.33,24.2494]
[1723412717425,1.0,144.35,144.33,24.2494]
[1723412718618,11.31,144.34,144.33,17.3209]
[1723412718804,11.31,144.34,144.33,24.2494]
[1723412719012,11.31,144.35,144.33,24.2494]
[1723412719497,11.31,144.34,144.3,17.3246]
[1723412719704,56.31,144.33,144.3,17.3246]
[1723412720010,11.31,144.34,144.32,6.929]
[1723412720204,21.3966,144.35,144.32,6.9289]
[1723412720406,21.3966,144.35,144.3,17.3246]
[1723412720407,32.7066,144.35,144.3,17.3246]
[1723412720596,32.7066,144.35,144.31,6.929]
[1723412721227,32.7066,144.35,144.32,6.9289]
[1723412722226,11.31,144.34,144.31,6.9294]
[1723412725446,11.31,144.34,144.3,24.2545]
[1723412727315,11.31,144.33,144.3,24.2545]
[1723412728026,11.31,144.33,144.3,17.3246]
[1723412728659,11.31,144.34,144.3,17.3246]
[1723412729532,11.31,144.34,144.3,24.2545]
[1723412729714,56.31,144.33,144.3,24.2545]
[1723412730316,11.31,144.31,144.27,17.3281]
[1723412730519,45.0,144.3,144.28,6.9309]
[1723412730745,7.30547,144.32,144.28,6.9309]
[1723412731044,45.0,144.31,144.28,6.9309]
[1723412731550,45.0,144.31,144.27,17.3281]
[1723412731551,11.31,144.31,144.27,24.2591]
[1723412731716,45.0,144.3,144.27,24.2591]
[1723412732116,45.0,144.3,144.28,6.9309]
[1723412732550,56.31,144.3,144.28,6.9309]
[1723412732934,11.31,144.29,144.24,17.3318]
[1723412733242,11.31,144.29,144.26,6.9318]
[1723412733429,56.31,144.3,144.24,28.6418]
[1723412733823,56.31,144.3,144.24,17.3318]
[1723412734036,56.31,144.3,144.26,17.3287]
[1723412734037,45.0,144.3,144.26,17.3287]
[1723412734632,56.31,144.3,144.27,6.9314]
[1723412737630,56.31,144.3,144.26,17.3287]
[1723412737631,56.31,144.3,144.26,24.2605]
[1723412737830,11.31,144.29,144.26,24.2605]
[1723412738126,45.0,144.3,144.26,24.2605]
[1723412738127,45.0,144.28,144.26,24.2605]
[1723412738451,56.31,144.3,144.27,6.9313]
[1723412739224,56.31,144.3,144.28,6.9309]
[1723412739427,56.31,144.3,144.27,6.9313]
[1723412739838,56.31,144.3,144.28,6.9308]
[1723412740422,45.0,144.3,144.27,6.9314]
[1723412740626,56.31,144.3,144.27,6.9314]
[1723412740827,45.0,144.3,144.27,6.9314]
[1723412741249,56.31,144.3,144.27,6.9314]
[1723412741631,0.25098,144.29,144.27,6.9314]
[1723412741825,0.25098,144.29,144.26,24.2606]
[1723412742227,0.25098,144.29,144.28,6.9309]
[1723412742425,0.12549,144.29,144.27,6.9313]
[1723412743337,0.12549,144.29,144.26,24.2605]
[1723412743523,0.12549,144.29,144.27,6.9313]
[1723412743524,0.25098,144.29,144.27,6.9313]
[1723412743729,0.12549,144.29,144.27,6.9313]
[1723412744657,0.12549,144.29,144.26,17.3287]
[1723412745753,0.12549,144.29,144.27,6.9313]
[1723412747463,45.0,144.3,144.26,17.3287]
[1723412747755,45.0,144.29,144.28,6.9309]
[1723412747950,45.0,144.29,144.27,6.9313]
[1723412748651,56.31,144.29,144.27,6.9313]
[1723412751339,56.31,144.29,144.26,24.2605]
[1723412751558,45.0,144.29,144.26,24.2605]
[1723412754161,45.0,144.29,144.27,6.9313]
[1723412754457,56.31,144.29,144.27,6.9313]
[1723412755766,45.0,144.29,144.28,6.9309]
[1723412755969,45.12549,144.29,144.28,6.9309]
[1723412756176,45.12549,144.29,144.27,6.9313]
[1723412757652,56.43549,144.29,144.27,6.9313]
[1723412758166,56.43549,144.29,144.26,17.3287]
[1723412758351,56.43549,144.29,144.27,6.9313]
[1723412759352,56.43549,144.29,144.26,24.2605]
[1723412759553,11.31,144.28,144.26,24.2605]
[1723412759752,11.31,144.28,144.27,6.9314]
[1723412759953,45.0,144.28,144.27,6.9314]
[1723412760872,45.0,144.28,144.21,10.00700076]
[1723412760873,0.12549,144.25,144.21,10.00700076]
[1723412761184,0.12549,144.25,144.23,6.9332]
[1723412761185,45.50196,144.25,144.23,6.9332]
[1723412761371,45.50196,144.25,144.22,17.334]
[1723412761577,0.50196,144.25,144.23,6.9332]
[1723412761873,45.0,144.26,144.24,6.9328]
[1723412762067,11.31,144.26,144.25,6.9324]
[1723412762254,45.0,144.26,144.25,6.9324]
[1723412762448,45.0,144.26,144.24,24.2639]
[1723412762863,45.0,144.25,144.24,24.2639]
[1723412763047,11.43549,144.27,144.24,17.3312]
[1723412763254,45.12549,144.26,144.24,17.3312]
[1723412763468,45.12549,144.26,144.23,6.9332]
[1723412763469,56.43549,144.26,144.23,6.9332]
[1723412764254,15.8243,144.28,144.23,17.3326]
[1723412764453,27.1343,144.28,144.25,6.932]
[1723412764652,15.8243,144.28,144.25,6.932]
[1723412765175,27.1343,144.28,144.25,6.932]
[1723412765382,11.31,144.28,144.26,6.9315]
[1723412765560,11.31,144.29,144.26,6.9315]
[1723412766356,23.1947,144.32,144.26,6.9315]
[1723412766357,11.31,144.28,144.26,6.9315]
[1723412767485,11.31,144.28,144.25,24.2622]
[1723412768184,11.31,144.28,144.25,6.9322]
[1723412769373,11.31,144.28,144.25,24.2622]
[1723412769573,45.0,144.27,144.25,24.2622]
[1723412769783,46.0,144.27,144.25,24.2622]
[1723412770298,46.0,144.27,144.25,17.33]
[1723412770582,45.0,144.27,144.25,17.33]
[1723412770786,45.0,144.27,144.24,6.9327]
[1723412771386,1.0,144.26,144.24,6.9327]
[1723412771576,56.31,144.27,144.24,6.9327]
[1723412773588,56.31,144.27,144.23,6.9332]
[1723412773794,11.56098,144.26,144.23,6.9332]
[1723412774097,45.0,144.25,144.23,6.9332]
[1723412775894,45.0,144.25,144.22,24.2677]
[1723412776274,45.0,144.25,144.23,6.9333]
[1723412776788,56.31,144.25,144.22,24.2678]
[1723412777093,11.31,144.24,144.22,24.2678]
[1723412778079,11.31,144.24,144.22,17.334]
[1723412778581,56.31,144.25,144.22,17.334]
[1723412779092,56.31,144.25,144.22,24.2678]
[1723412779093,11.31,144.24,144.22,24.2678]
[1723412779584,56.31,144.23,144.22,17.334]
[1723412780487,45.0,144.23,144.22,17.334]
[1723412780990,45.0,144.23,144.2,6.9347]
[1723412781250,56.31,144.23,144.19,17.3375]
[1723412781368,56.31,144.23,144.21,6.9339]
[1723412781369,45.0,144.23,144.21,6.9339]
[1723412782789,46.0,144.23,144.2,6.9347]
[1723412782991,45.0,144.23,144.21,6.9342]
[1723412783583,46.0,144.23,144.21,6.9342]
[1723412784594,45.0,144.23,144.2,6.9346]
[1723412785299,56.31,144.23,144.2,6.9346]
[1723412785689,57.31,144.23,144.2,6.9346]
[1723412786001,56.31,144.23,144.2,6.9346]
[1723412786196,11.31,144.21,144.19,17.3375]
[1723412786397,45.0,144.2,144.19,17.3375]
[1723412786900,45.0,144.2,144.19,24.2727]
[1723412787207,45.0,144.2,144.19,17.3375]
[1723412787499,45.0,144.2,144.19,24.2727]
[1723412787802,45.0,144.2,144.19,17.3375]
[1723412789003,56.31,144.2,144.15,17.3421]
[1723412789305,45.0,144.2,144.17,6.9358]
[1723412789982,0.12549,144.19,144.17,6.9358]
[1723412790179,57.31,144.2,144.17,6.9362]
[1723412790401,0.12549,144.19,144.16,6.9366]
[1723412790701,12.56098,144.19,144.15,17.3421]
[1723412790890,45.0,144.18,144.15,17.3421]
[1723412791212,45.0,144.18,144.16,6.9366]
[1723412792094,45.0,144.18,144.16,6.9367]
[1723412792602,46.25098,144.19,144.16,6.9367]
[1723412792779,11.31,144.18,144.16,6.9367]
[1723412792978,56.31,144.17,144.16,6.9367]
[1723412793178,56.31,144.17,144.15,17.3421]
[1723412793379,11.43549,144.16,144.13,6.9377]
[1723412793581,11.31,144.14,144.13,6.9377]
[1723412793882,12.31,144.15,144.14,6.9376]
[1723412794089,57.31,144.15,144.14,6.9376]
[1723412794502,45.0,144.15,144.14,6.9376]
[1723412795314,15.4691,144.18,144.16,6.9367]
[1723412795683,26.7791,144.18,144.16,6.9367]
[1723412796180,15.4691,144.18,144.16,6.9367]
[1723412797586,45.0,144.17,144.16,6.9367]
[1723412801908,56.43549,144.17,144.14,17.343]
[1723412802187,0.25098,144.16,144.14,17.343]
[1723412804924,0.25098,144.16,144.14,24.2804]
[1723412806922,0.25098,144.16,144.14,17.343]
[1723412807120,12.56098,144.16,144.12,6.9386]
[1723412807302,45.0,144.15,144.13,6.938]
[1723412809906,56.31,144.15,144.12,6.9386]
[1723412810108,45.0,144.15,144.12,6.9386]
[1723412810416,45.25098,144.16,144.13,6.938]
[1723412810624,56.56098,144.16,144.13,6.938]
[1723412811523,45.25098,144.16,144.13,6.938]
[1723412811727,56.56098,144.16,144.13,6.938]
[1723412811913,1.0,144.15,144.13,6.938]
[1723412812113,11.31,144.15,144.12,6.9386]
[1723412812331,45.0,144.14,144.12,6.9386]
[1723412813021,56.31,144.15,144.12,6.9386]
[1723412813709,0.12549,144.14,144.12,6.9386]
[1723412818910,0.12549,144.14,144.13,6.9381]
[1723412823431,0.12549,144.14,144.12,6.9385]
[1723412823808,0.12549,144.14,144.13,6.9381]
[1723412824437,11.43549,144.14,144.12,6.9385]
[1723412824634,56.31,144.13,144.12,6.9386]
[1723412827444,56.56098,144.13,144.12,6.9386]
[1723412827615,56.43549,144.13,144.12,6.9386]
[1723412827817,56.31,144.13,144.12,6.9386]
[1723412830844,56.43549,144.13,144.11,17.3473]
[1723412831031,12.31,144.12,144.11,17.3473]
[1723412831351,57.31,144.12,144.11,24.2864]
[1723412832119,56.31,144.12,144.11,17.3473]
[1723412832452,56.43549,144.12,144.11,17.3473]
[1723412832830,56.43549,144.12,144.08,17.8512]
[1723412833038,11.31,144.1,144.08,17.8512]
[1723412833237,46.0,144.09,144.08,17.8512]
[1723412833440,46.0,144.09,144.08,24.7914]
[1723412833844,46.0,144.09,144.08,17.8512]
[1723412834026,46.0,144.09,144.08,0.5]
[1723412834228,46.37647,144.09,144.08,0.5]
[1723412834645,45.25098,144.09,144.08,0.5]
[1723412835256,56.56098,144.09,144.08,0.5]
[1723412836520,45.12549,144.09,144.08,0.5]
[1723412836730,45.25098,144.09,144.08,0.5]
[1723412836940,56.56098,144.09,144.08,0.5]
[1723412837332,56.68647,144.09,144.08,0.5]
[1723412837535,56.81196,144.09,144.08,0.5]
[1723412839944,57.81196,144.09,144.08,0.5]
[1723412841047,64.75206,144.09,144.08,0.5]
[1723412844261,64.75206,144.09,143.98,6.945]
[1723412844262,0.12549,144.02,143.98,6.945]
[1723412844444,0.12549,144.02,143.93,50.1813]
[1723412844445,0.12549,144.02,143.96,24.3114]
[1723412844757,0.12549,144.0,143.96,24.3114]
[1723412844964,1.50196,144.0,143.96,24.3114]
[1723412845269,46.50196,144.0,143.97,6.9458]
[1723412845446,11.31,143.98,143.97,6.9458]
[1723412845651,45.0,143.98,143.97,6.9458]
[1723412845853,56.31,143.98,143.97,6.9458]
[1723412846240,56.31,143.98,143.96,24.3116]
[1723412846566,56.31,143.98,143.97,6.9458]
[1723412846952,56.31,143.98,143.96,24.3116]
[1723412847354,11.31,143.97,143.95,6.9468]
[1723412847576,11.31,143.97,143.94,7.7555246]
[1723412847577,11.31,143.96,143.94,7.7555246]
[1723412847868,45.0,143.95,143.94,7.7555246]
[1723412848163,45.0,143.95,143.94,0.8086246]
[1723412849477,45.0,143.95,143.94,7.7559246]
[1723412849761,45.0,143.95,143.94,0.8086246]
[1723412851351,57.31,143.95,143.94,0.8086246]
[1723412851746,57.43549,143.95,143.94,0.8086246]
[1723412852168,57.56098,143.95,143.94,0.8086246]
[1723412852362,64.75876,143.95,143.94,0.8086246]
[1723412853044,68.85636,143.95,143.94,0.8086246]
[1723412853260,6.9478,143.93,143.88,6.9501]
[1723412853443,79.26226,143.95,143.87,17.3766]
[1723412853444,11.31,143.9,143.89,6.9497]
[1723412853647,11.31,143.91,143.89,6.9497]
[1723412853848,45.0,143.9,143.88,6.9501]
[1723412854145,45.0,143.9,143.87,17.3766]
[1723412854463,11.56098,143.89,143.87,17.3766]
[1723412854664,45.0,143.88,143.87,17.3766]
[1723412856477,45.0,143.88,143.87,24.3273]
[1723412857080,45.0,143.88,143.87,17.3766]
[1723412857376,45.0,143.88,143.85,6.9516]
[1723412857377,78.9027,143.88,143.85,6.9516]
[1723412857584,11.31,143.87,143.83,17.3804]
[1723412858079,11.31,143.87,143.84,6.9517]
[1723412858381,11.31,143.87,143.85,6.9516]
[1723412858767,12.31,143.87,143.85,6.9516]
[1723412859086,12.31,143.87,143.84,6.9521]
[1723412859379,45.0,143.86,143.84,6.9521]
[1723412859585,11.31,143.85,143.84,6.9521]
[1723412860156,56.31,143.86,143.84,6.9521]
[1723412861481,11.31,143.85,143.83,24.3329]
[1723412861679,1.0,143.85,143.81,6.9535]
[1723412861887,11.31,143.83,143.81,6.9535]
[1723412862583,11.31,143.83,143.8,24.3391]
[1723412862763,45.0,143.82,143.8,24.3391]
[1723412863158,46.0,143.82,143.8,24.3391]
[1723412864491,46.0,143.82,143.8,17.3851]
[1723412864691,12.31,143.82,143.8,17.3851]
[1723412864867,45.0,143.81,143.8,17.3851]
[1723412866367,45.0,143.81,143.79,7.85904827]
[1723412866569,46.0,143.81,143.79,0.90454827]
[1723412866878,45.0,143.81,143.79,7.85904827]
[1723412867087,45.0,143.81,143.8,6.9541]
[1723412867258,11.31,143.82,143.79,18.29034827]
[1723412867465,46.0,143.81,143.79,25.24484827]
[1723412867693,1.0,143.81,143.79,25.24484827]
[1723412867889,45.0,143.8,143.79,18.29034827]
[1723412868384,45.12549,143.8,143.79,0.90454827]
[1723412868594,56.56098,143.8,143.79,0.90454827]
[1723412868891,56.81196,143.8,143.79,0.90454827]
[1723412869194,45.50196,143.8,143.79,0.90454827]
[1723412869563,56.81196,143.8,143.79,0.90454827]
[1723412871778,45.50196,143.8,143.79,0.90454827]
[1723412872090,83.76606,143.8,143.79,0.90454827]
[1723412872989,72.45606,143.8,143.79,0.90454827]
[1723412873201,83.76606,143.8,143.79,0.90454827]
[1723412875413,72.45606,143.8,143.79,0.90454827]
[1723412875604,83.76606,143.8,143.79,0.90454827]
[1723412876814,83.76606,143.8,143.73,17.3932]
[1723412876815,76.81196,143.8,143.73,17.3932]
[1723412876987,11.31,143.75,143.73,17.3932]
[1723412877322,21.50196,143.79,143.73,17.3932]
[1723412877323,45.0,143.74,143.73,17.3932]
[1723412877892,45.0,143.74,143.73,24.3506]
[1723412880419,11.31,143.77,143.74,6.9567]
[1723412880594,45.0,143.76,143.74,6.9567]
[1723412880797,56.31,143.76,143.73,24.3505]
[1723412881304,45.0,143.76,143.73,17.3932]
[1723412881513,11.31,143.76,143.73,17.3932]
[1723412881716,56.31,143.75,143.73,24.3505]
[1723412881918,45.0,143.75,143.74,6.957]
[1723412882412,8.20568,143.79,143.73,17.3932]
[1723412882413,20.0,143.8,143.75,17.3906]
[1723412882588,11.31,143.83,143.8,6.954]
[1723412882790,15.2547,143.86,143.82,6.9531]
[1723412883001,11.31,143.86,143.81,17.3834]
[1723412883206,11.31,143.86,143.84,6.9521]
[1723412883408,11.31,143.86,143.83,6.9525]
[1723412884118,6.9503,143.88,143.83,6.9525]
[1723412884290,11.31,143.86,143.83,6.9525]
[1723412884493,6.9498,143.89,143.84,6.9521]
[1723412884796,11.31,143.87,143.84,6.9521]
[1723412885713,11.31,143.88,143.85,6.9515]
[1723412885919,11.31,143.89,143.85,6.9515]
[1723412886135,16.4911,143.94,143.85,17.3781]
[1723412886302,23.7724,143.95,143.88,17.3748]
[1723412886303,1.0,143.95,143.88,17.3748]
[1723412886498,11.31,143.95,143.92,6.9479]
[1723412886695,11.31,143.95,143.89,1.38961256]
[1723412886696,9.09435675,143.99,143.94,6.9471]
[1723412886924,18.5756826,143.98,143.94,6.9471]
[1723412887214,6.4049,143.99,143.94,6.9471]
[1723412887422,6.9444,144.0,143.95,6.9468]
[1723412887620,11.31,143.99,143.96,6.9461]
[1723412887931,6.4049,144.04,143.97,17.3647]
[1723412888221,13.3474,144.04,143.98,6.9453]
[1723412888425,29.6631,144.03,143.98,6.9453]
[1723412888801,6.9431,144.03,143.98,6.9453]
[1723412889005,6.4049,144.04,143.98,6.9453]
[1723412889211,16.4911,144.05,143.98,6.9453]
[1723412889212,22.72,144.03,143.98,6.9453]
[1723412889516,29.663,144.03,143.98,6.9453]
[1723412889694,22.72,144.03,143.98,6.9453]
[1723412889900,22.72,144.03,143.99,6.9448]
[1723412890118,22.72,144.03,143.98,6.9453]
[1723412890426,22.72,144.03,143.97,17.3647]
[1723412890427,22.72,144.03,143.99,6.9447]
[1723412893729,22.72,144.03,143.99,6.9448]
[1723412895798,23.72,144.03,143.99,6.9448]
[1723412898730,45.0,144.02,143.99,6.9448]
[1723412899026,22.72,144.03,143.99,6.9448]
[1723412899229,45.0,144.02,143.99,6.9448]
[1723412899831,45.0,144.02,143.98,6.9453]
[1723412900834,45.0,144.02,143.97,17.3647]
[1723412901201,6.9439,144.01,143.97,17.3647]
[1723412901405,45.0,144.0,143.97,24.3104]
[1723412901703,46.0,144.0,143.97,24.3104]
[1723412901903,22.72,143.99,143.96,6.9463]